[Event "GER-ch Youth-U12 2022"]
[Site "Willingen"]
[Date "2022.06.09"]
[Round "7.18"]
[White "Kullmann, Max"]
[Black "Li, Luxuan"]
[Result "1/2-1/2"]
[ECO "D35"]
[WhiteElo "1442"]
[BlackElo "1235"]
[Annotator "NA RC COMBH"]
[PlyCount "86"]
[EventDate "2022.06.05"]
[EventType "swiss"]
[EventRounds "9"]
[EventCountry "GER"]
[SourceTitle "playchess.com"]
[Source "ChessBase"]
[SourceQuality "1"]
[TimeControl "40/4500+30:900+30"]

1. d4 {[%emt 0:00:00]} d5 {[%emt 0:00:00]} 2. c4 {[%emt 0:00:00]} e6 {[%emt 0:00:00]} 3. Nc3 {[%emt 0:00:00]} Nf6 {[%emt 0:00:00]} 4. cxd5 {[%emt 0:00:00]} exd5 {[%emt 0:00:00]} 5. Bg5 {[%emt 0:00:00]} Be7 {[%emt 0:00:00]} 6. e3 {[%emt 0:00:00]} Bf5 {[%emt 0:00:00]} 7. Bxf6 {[%emt 0:04:20]} Bxf6 {[%emt 0:00:00]} 8. Qb3 {[%emt 0:00:19]} Be6 {[%emt 0:00:00]} 9. Qxb7 {[%emt 0:11:53]} Nd7 {[%emt 0:00:00]} 10. Nb5 {[%emt 0:14:09]} Rc8 {[%emt 0:06:24]} 11. Rc1 {[%emt 0:07:59]} O-O {[%emt 0:06:19]} 12. Nxc7 {[%emt 0:15:34]} Nb6 {[%emt 0:20:28]} 13. Ne2 {[%emt 0:11:31]} Qe7 {[%emt 0:07:55]} 14. Qxa7 {[%emt 0:08:41]} Nc4 {[%emt 0:02:31]} 15. Nb5 {[%emt 0:03:07]} Qb4+ {[%emt 0:02:09]} 16. Nec3 {[%emt 0:00:43]} Qxb2 {[%emt 0:00:57]} 17. Rd1 {[%emt 0:00:10]} Bh4 {[%emt 0:03:35]} 18. g3 {[%emt 0:01:08]} Bg4 {[%emt 0:02:45]} 19. Bxc4 {[%emt 0:00:22]} Rxc4 {[%emt 0:01:09]} 20. Rd2 {[%emt 0:02:17]} Qa1+ {[%emt 0:03:12]} 21. Nd1 {[%emt 0:00:38]} Bf6 {[%emt 0:01:16]} 22. O-O {[%emt 0:01:22]} Bh3 {[%emt 0:01:03]} 23. Re1 {[%emt 0:00:12]} Qb1 {[%emt 0:00:38]} 24. Na3 {[%emt 0:00:57]} Qf5 {[%emt 0:00:57]} 25. f3 {[%emt 0:01:12]} Rcc8 {[%emt 0:01:26]} 26. Nf2 {[%emt 0:00:25]} Ra8 {[%emt 0:00:41]} 27. Qc5 {[%emt 0:00:15]} Rfc8 {[%emt 0:01:36]} 28. Qb4 {[%emt 0:00:27]} Qd7 {[%emt 0:00:40]} 29. Nc2 {[%emt 0:00:37]} Bf5 {[%emt 0:00:28]} 30. e4 {[%emt 0:00:31]} dxe4 {[%emt 0:01:02]} 31. fxe4 {[%emt 0:00:18]} Bg6 {[%emt 0:00:44]} 32. Qb3 {[%emt 0:00:41]} Bd8 {[%emt 0:01:15]} 33. Nd3 {[%emt 0:01:02]} Ba5 {[%emt 0:00:37]} 34. Ndb4 {[%emt 0:00:17]} Rcb8 {[%emt 0:01:42]} 35. a3 {[%emt 0:00:11]} h6 {[%emt 0:00:33]} 36. Qc4 {[%emt 0:00:51]} Rc8 {[%emt 0:00:24]} 37. Qb3 {[%emt 0:00:19]} Rab8 {[%emt 0:00:24]} 38. Qd3 {[%emt 0:00:57]} Re8 {[%emt 0:00:41]} 39. Rde2 {[%emt 0:00:32]} Rbd8 {[%emt 0:01:37]} 40. Rd2 {[%emt 0:00:40]} Qg4 {[%emt 0:00:51]} 41. Rde2 {[%emt 0:15:49]} h5 {[%emt 0:15:37]} 42. Re3 {[%emt 0:00:00]} Rd7 {[%emt 0:00:00]} 43. Qe2 {[%emt 0:00:00]} Qg5 {[%emt 0:06:14]} 1/2-1/2

[Event "GER-ch Youth-U12 2022"]
[Site "Willingen"]
[Date "2022.06.09"]
[Round "7.19"]
[White "Herrmann, Jakob"]
[Black "Hellenbroich, Hanno"]
[Result "1-0"]
[ECO "B20"]
[WhiteElo "1737"]
[BlackElo "1274"]
[Annotator "NA RC COMBH"]
[PlyCount "113"]
[EventDate "2022.06.05"]
[EventType "swiss"]
[EventRounds "9"]
[EventCountry "GER"]
[SourceTitle "playchess.com"]
[Source "ChessBase"]
[SourceQuality "1"]
[TimeControl "40/4500+30:900+30"]

1. e4 {[%emt 0:00:00]} c5 {[%emt 0:00:00]} 2. Ne2 {[%emt 0:00:00]} Nf6 {[%emt 0:00:00]} 3. Nbc3 {[%emt 0:00:00]} d5 {[%emt 0:00:00]} 4. exd5 {[%emt 0:00:00]} Nxd5 {[%emt 0:00:00]} 5. g3 {[%emt 0:00:00]} Bg4 {[%emt 0:00:00]} 6. Bg2 {[%emt 0:00:00]} Nxc3 {[%emt 0:00:00]} 7. bxc3 {[%emt 0:00:00]} Nc6 {[%emt 0:00:00]} 8. h3 {[%emt 0:00:00]} Be6 {[%emt 0:00:00]} 9. Ba3 {[%emt 0:00:00]} Bd5 {[%emt 0:00:00]} 10. Nf4 {[%emt 0:07:00]} Bxg2 {[%emt 0:00:00]} 11. Nxg2 {[%emt 0:00:06]} Qd5 {[%emt 0:00:00]} 12. O-O {[%emt 0:00:17]} e5 {[%emt 0:00:00]} 13. Re1 {[%emt 0:00:28]} Be7 {[%emt 0:00:00]} 14. Ne3 {[%emt 0:01:50]} Qd7 {[%emt 0:00:00]} 15. Qg4 {[%emt 0:05:48]} O-O-O {[%emt 0:15:20]} 16. d3 {[%emt 0:05:31]} h5 {[%emt 0:05:04]} 17. Qxd7+ {[%emt 0:01:05]} Rxd7 {[%emt 0:00:12]} 18. Nc4 {[%emt 0:06:49]} f6 {[%emt 0:02:15]} 19. Rab1 {[%emt 0:00:36]} g5 {[%emt 0:02:20]} 20. Kg2 {[%emt 0:02:43]} b6 {[%emt 0:03:17]} 21. Ne3 {[%emt 0:10:46]} g4 {[%emt 0:02:03]} 22. hxg4 {[%emt 0:01:07]} hxg4 {[%emt 0:03:26]} 23. Nxg4 {[%emt 0:00:42]} f5 {[%emt 0:11:26]} 24. Nxe5 {[%emt 0:04:47]} Nxe5 {[%emt 0:00:26]} 25. Rxe5 {[%emt 0:00:07]} f4 {[%emt 0:00:05]} 26. Rbe1 {[%emt 0:03:55]} Kd8 {[%emt 0:04:00]} 27. d4 {[%emt 0:10:01]} Bd6 {[%emt 0:01:50]} 28. Rd5 {[%emt 0:01:04]} fxg3 {[%emt 0:00:11]} 29. fxg3 {[%emt 0:00:15]} Rg8 {[%emt 0:00:52]} 30. Re3 {[%emt 0:00:14]} cxd4 {[%emt 0:00:09]} 31. cxd4 {[%emt 0:00:10]} Bf4 {[%emt 0:07:39]} 32. Rxd7+ {[%emt 0:00:28]} Kxd7 {[%emt 0:00:08]} 33. Rf3 {[%emt 0:00:21]} Bb8 {[%emt 0:00:42]} 34. Bc1 {[%emt 0:01:42]} Rc8 {[%emt 0:01:40]} 35. c3 {[%emt 0:00:51]} Rc4 {[%emt 0:02:33]} 36. g4 {[%emt 0:01:31]} b5 {[%emt 0:01:52]} 37. Bb2 {[%emt 0:08:19]} Ra4 {[%emt 0:02:54]} 38. a3 {[%emt 0:00:29]} Bd6 {[%emt 0:00:06]} 39. g5 {[%emt 0:00:19]} Rc4 {[%emt 0:09:34]} 40. Rf5 {[%emt 0:06:41]} a6 {[%emt 0:03:36]} 41. Kf2 {[%emt 0:20:10]} Ke6 {[%emt 0:18:57]} 42. Rf6+ {[%emt 0:00:54]} Ke7 {[%emt 0:00:23]} 43. Ke2 {[%emt 0:01:45]} Rc8 {[%emt 0:01:21]} 44. Kf3 {[%emt 0:00:00]} a5 {[%emt 0:00:00]} 45. Ke4 {[%emt 0:00:00]} b4 {[%emt 0:00:00]} 46. axb4 {[%emt 0:00:00]} axb4 {[%emt 0:00:00]} 47. Kd5 {[%emt 0:00:00]} bxc3 {[%emt 0:00:00]} 48. Bxc3 {[%emt 0:00:00]} Ba3 {[%emt 0:00:00]} 49. Ba5 {[%emt 0:00:00]} Rg8 {[%emt 0:00:00]} 50. Bd2 {[%emt 0:00:00]} Rd8+ {[%emt 0:00:00]} 51. Ke5 {[%emt 0:00:00]} Bd6+ {[%emt 0:00:00]} 52. Rxd6 {[%emt 0:00:00]} Rb8 {[%emt 0:00:00]} 53. g6 {[%emt 0:00:00]} Rb5+ {[%emt 0:00:00]} 54. d5 {[%emt 0:00:00]} Rb2 {[%emt 0:00:00]} 55. Bg5+ {[%emt 0:00:00]} Kf8 {[%emt 0:00:17]} 56. Bf6 {[%emt 0:00:00]} Re2+ {[%emt 0:00:24]} 57. Kd4 {[%emt 0:00:00]} 1-0

[Event "GER-ch Youth-U12 2022"]
[Site "Willingen"]
[Date "2022.06.09"]
[Round "7.20"]
[White "Agirretxe San Sebastian, Jesus M"]
[Black "Uyar, Levin"]
[Result "0-1"]
[ECO "D43"]
[WhiteElo "2117"]
[BlackElo "1306"]
[Annotator "TA"]
[PlyCount "76"]
[EventDate "2022.06.05"]
[EventType "swiss"]
[EventRounds "9"]
[EventCountry "GER"]
[SourceTitle "playchess.com"]
[Source "ChessBase"]
[SourceQuality "1"]
[TimeControl "40/4500+30:900+30"]

{[%evp 9,76,-22,-31,-68,-70,-173,-183,-250,-249,-325,-332,-573,-260,-248,-249,-258,-202,-200,-200,-220,-67,-218,-195,-219,-229,-241,-233,-218,-227,-245,-241,-276,-258,-327,-325,-323,-318,-313,-298,-312,-304,-326,-337,-348,-349,-336,-329,-339,-284,-264,-204,-239,-216,-378,-374,-390,-389,-418,-335,-418,-418,-405,-366,-334,-324,-343,-324,-29979,-29980]} 1. d4 {[%emt 0:00:00]} Nf6 {[%emt 0:00:00]} 2. c4 {[%emt 0:00:00][%cal Bc2c4,Bc4c5][%mdl 32]} e6 {[%emt 0:00:00]} 3. Nf3 {[%emt 0:00:00]} d5 {[%emt 0:00:00]} 4. Nc3 {[%emt 0:00:00]} c6 {[%emt 0:00:00]} 5. c5 {[%emt 0:00:00]} b6 {[%emt 0:00:00]} 6. b4 {[%emt 0:00:00] D43: Semi-Slav: 5 Bg5 h6.} a5 {[%emt 0:00:00]} 7. Na4 {[%emt 0:00:00]} (7. Qa4 $15) 7... Nbd7 $19 {[%emt 0:00:00] [#]} 8. Qb3 $146 {[%emt 0:02:12]} (8. Qc2 $142) ({Predecessor:} 8. Bg5 axb4 9. Ne5 bxc5 10. Nxd7 Bxd7 11. Nxc5 Bxc5 12. dxc5 Qa5 13. Be3 Ne4 14. Qb3 Nxc5 15. Bxc5 Qxc5 16. e3 Ra3 {0-1 (16) Meffert,P (1914)-Pralle,F (1849) Bad Homburg 2017}) 8... axb4 {[%emt 0:03:17][%cal Rb6c5]} 9. Qxb4 {[%emt 0:00:36]} bxc5 {[%emt 0:00:29]} 10. dxc5 {[%emt 0:05:31] [#]} (10. Nxc5 {only move.} Ne4 11. e3) 10... Qa5 {[%emt 0:01:13]} (10... Ne4 $142 11. Bd2 Ndxc5 12. Nxc5 Bxc5) 11. Qxa5 {[%emt 0:00:20]} Rxa5 {[%emt 0:00:06]} 12. Nb6 {[%emt 0:00:10]} Bb7 {[%emt 0:02:37]} 13. Nxd7 {[%emt 0:03:43]} Nxd7 {[%emt 0:00:46]} 14. Bd2 {[%emt 0:07:08]} Rxc5 {[%emt 0:02:22]} ({Black should play} 14... Ra3 $19 15. e3 Nxc5) 15. Bb4 $2 {[%emt 0:00:54] This move loses the game for White.} ({Better is} 15. a4 $15) 15... Rb5 {[%emt 0:00:33]} 16. Bxf8 {[%emt 0:00:46]} Rxf8 {[%emt 0:00:40]} ({Inferior is} 16... Nxf8 17. e4 Rb4 18. exd5 $17) 17. e4 {[%emt 0:01:18]} Ra5 {[%emt 0:00:55]} ({Not} 17... dxe4 18. Bxb5 exf3 19. Bf1 $11) 18. exd5 {[%emt 0:00:38]} cxd5 {[%emt 0:04:12]} ({Worse is} 18... Rxd5 19. a4 $17) 19. Be2 {[%emt 0:01:53]} Ke7 {[%emt 0:02:45]} 20. Rb1 {[%emt 0:02:26]} Rb8 {[%emt 0:02:44]} 21. Rb2 {[%emt 0:00:31]} Ba6 {[%emt 0:01:01]} 22. Rxb8 {[%emt 0:01:42]} Nxb8 {[%emt 0:00:08]} 23. Bxa6 {[%emt 0:01:00]} Rxa6 {[%emt 0:00:32][%mdl 4096] Endgame KRN-KRN} 24. O-O {[%emt 0:00:08]} Rxa2 {[%emt 0:00:14]} 25. g3 {[%emt 0:00:31]} f6 {[%emt 0:01:41]} 26. Nd4 {[%emt 0:01:56]} Rd2 {[%emt 0:00:50]} 27. Nf3 {[%emt 0:04:29]} Rd3 {[%emt 0:00:18]} 28. Kg2 {[%emt 0:00:03]} Nc6 {[%emt 0:01:11]} 29. Rb1 {[%emt 0:00:42]} f5 {[%emt 0:07:02]} 30. h4 {[%emt 0:02:08]} h6 {[%emt 0:15:31]} 31. Rb6 $2 {[%emt 0:02:57]} (31. Rc1 Nd4 32. Ne5) 31... Rc3 {[%emt 0:09:02]} 32. Rb7+ {[%emt 0:01:23]} Kf6 {[%emt 0:00:17]} 33. Rc7 {[%emt 0:01:08]} Rc4 {[%emt 0:01:12] Prevents Nd4.} 34. Nd2 {[%emt 0:01:45]} Rc2 {[%emt 0:00:25]} 35. Nb3 {[%emt 0:00:09] [#]} Nd4 $1 {[%emt 0:00:58][%mdl 512]} 36. Nc5 {[%emt 0:00:48]} Rc4 {[%emt 0:09:53]} 37. Nd7+ {[%emt 0:00:55]} Ke7 {[%emt 0:00:08]} 38. Nb6+ $2 {[%emt 0:00:11]} (38. Ra7 $19 Kd6 39. Nf8) 38... Rxc7 {[%emt 0:00:09] Weighted Error Value: White=0.66/Black=0.29 (precise)} 0-1

[Event "GER-ch Youth-U12 2022"]
[Site "Willingen"]
[Date "2022.06.09"]
[Round "7.21"]
[White "Limmer, Marco"]
[Black "Goldkuhle, Collin"]
[Result "1/2-1/2"]
[ECO "B36"]
[WhiteElo "1825"]
[BlackElo "1323"]
[Annotator "NA RC COMBH"]
[PlyCount "46"]
[EventDate "2022.06.05"]
[EventType "swiss"]
[EventRounds "9"]
[EventCountry "GER"]
[SourceTitle "playchess.com"]
[Source "ChessBase"]
[SourceQuality "1"]
[TimeControl "40/4500+30:900+30"]

1. e4 {[%emt 0:00:00]} c5 {[%emt 0:00:00]} 2. Nf3 {[%emt 0:00:00]} Nc6 {[%emt 0:00:00]} 3. d4 {[%emt 0:00:00]} cxd4 {[%emt 0:00:00]} 4. Nxd4 {[%emt 0:00:00]} g6 {[%emt 0:00:00]} 5. c4 {[%emt 0:00:00]} Nf6 {[%emt 0:00:00]} 6. Nc3 {[%emt 0:00:00]} Nxd4 {[%emt 0:00:00]} 7. Qxd4 {[%emt 0:00:00]} d6 {[%emt 0:00:00]} 8. Be3 {[%emt 0:00:00]} Bg7 {[%emt 0:00:00]} 9. Be2 {[%emt 0:00:00]} O-O {[%emt 0:00:00]} 10. Qd2 {[%emt 0:00:00]} a5 {[%emt 0:00:00]} 11. O-O {[%emt 0:00:00]} a4 {[%emt 0:00:00]} 12. Rab1 {[%emt 0:00:00]} Qa5 {[%emt 0:00:00]} 13. f3 {[%emt 0:00:00]} Be6 {[%emt 0:00:00]} 14. b3 {[%emt 0:00:38]} axb3 {[%emt 0:00:00]} 15. Rxb3 {[%emt 0:01:27]} Nd7 {[%emt 0:02:54]} 16. Nd5 {[%emt 0:10:54]} Bxd5 {[%emt 0:00:00]} 17. Qxa5 {[%emt 0:02:25]} Rxa5 {[%emt 0:00:00]} 18. cxd5 {[%emt 0:00:32]} Rxa2 {[%emt 0:00:00]} 19. Bc4 {[%emt 0:05:54]} Ne5 {[%emt 0:00:12]} 20. Rc1 {[%emt 0:04:21]} Rc8 {[%emt 0:07:40]} 21. Rxb7 {[%emt 0:13:03]} Ra4 {[%emt 0:00:50]} 22. Bf1 {[%emt 0:01:48]} Rxc1 {[%emt 0:10:41]} 23. Bxc1 {[%emt 0:01:34]} Bf6 {[%emt 0:02:30]} 1/2-1/2

[Event "GER-ch Youth-U12 2022"]
[Site "Willingen"]
[Date "2022.06.09"]
[Round "7.22"]
[White "Mohammadzadeh, Daris"]
[Black "Wylie, Leonard"]
[Result "0-1"]
[ECO "C09"]
[WhiteElo "1371"]
[BlackElo "1733"]
[Annotator "NA RC COMBH"]
[PlyCount "120"]
[EventDate "2022.06.05"]
[EventType "swiss"]
[EventRounds "9"]
[EventCountry "GER"]
[SourceTitle "playchess.com"]
[Source "ChessBase"]
[SourceQuality "1"]
[TimeControl "40/4500+30:900+30"]

1. e4 {[%emt 0:00:00]} e6 {[%emt 0:00:00]} 2. d4 {[%emt 0:00:00]} d5 {[%emt 0:00:00]} 3. Nd2 {[%emt 0:00:00]} c5 {[%emt 0:00:00]} 4. exd5 {[%emt 0:00:00]} exd5 {[%emt 0:00:00]} 5. Ngf3 {[%emt 0:00:00]} Nc6 {[%emt 0:00:00]} 6. Bb5 {[%emt 0:00:00]} Bd7 {[%emt 0:00:00]} 7. O-O {[%emt 0:00:00]} cxd4 {[%emt 0:00:00]} 8. Nb3 {[%emt 0:00:00]} a6 {[%emt 0:00:00]} 9. Re1+ {[%emt 0:00:00]} Be7 {[%emt 0:00:00]} 10. Bf1 {[%emt 0:00:00]} Nf6 {[%emt 0:00:00]} 11. Nbxd4 {[%emt 0:03:46]} O-O {[%emt 0:00:00]} 12. g3 {[%emt 0:04:27]} Ne4 {[%emt 0:03:11]} 13. Be3 {[%emt 0:07:41]} Bf6 {[%emt 0:05:42]} 14. c3 {[%emt 0:06:16]} Bg4 {[%emt 0:03:10]} 15. Bg2 {[%emt 0:03:06]} Re8 {[%emt 0:03:54]} 16. Nxc6 {[%emt 0:09:11]} bxc6 {[%emt 0:00:12]} 17. Qc1 {[%emt 0:02:04]} Rc8 {[%emt 0:08:44]} 18. Bf4 {[%emt 0:17:05]} Qb6 {[%emt 0:04:10]} 19. Rf1 {[%emt 0:06:22]} c5 {[%emt 0:02:04]} 20. h3 {[%emt 0:01:05]} Bf5 {[%emt 0:04:22]} 21. Nd2 {[%emt 0:01:11]} Nxd2 {[%emt 0:00:53]} 22. Bxd2 {[%emt 0:05:58]} d4 {[%emt 0:01:04]} 23. Re1 {[%emt 0:01:26]} Rxe1+ {[%emt 0:02:13]} 24. Bxe1 {[%emt 0:00:13]} c4 {[%emt 0:03:19]} 25. Qf4 {[%emt 0:04:20]} Bg6 {[%emt 0:03:03]} 26. cxd4 {[%emt 0:01:19]} Qxb2 {[%emt 0:01:59]} 27. Rc1 {[%emt 0:01:53]} Qxd4 {[%emt 0:02:45]} 28. Qxd4 {[%emt 0:01:23]} Bxd4 {[%emt 0:01:18]} 29. Bc3 {[%emt 0:01:19]} Bxc3 {[%emt 0:02:28]} 30. Rxc3 {[%emt 0:00:01]} Bd3 {[%emt 0:00:20]} 31. Bb7 {[%emt 0:00:22]} Rc7 {[%emt 0:02:06]} 32. Bxa6 {[%emt 0:00:12]} Kf8 {[%emt 0:00:09]} 33. Kg2 {[%emt 0:01:29]} Ke7 {[%emt 0:02:28]} 34. Kf3 {[%emt 0:01:45]} Kd6 {[%emt 0:05:43]} 35. a3 {[%emt 0:02:41]} Kc5 {[%emt 0:00:31]} 36. Ke3 {[%emt 0:00:51]} Kb6 {[%emt 0:01:14]} 37. Bxc4 {[%emt 0:00:56]} Bxc4 {[%emt 0:00:33]} 38. f4 {[%emt 0:00:44]} Be6 {[%emt 0:02:01]} 39. Rxc7 {[%emt 0:00:52]} Kxc7 {[%emt 0:00:10]} 40. g4 {[%emt 0:00:32]} g6 {[%emt 0:00:46]} 41. Kf3 {[%emt 0:00:33]} h5 {[%emt 0:00:00]} 42. Kg3 {[%emt 0:02:01]} hxg4 {[%emt 0:00:00]} 43. hxg4 {[%emt 0:00:07]} Kb6 {[%emt 0:00:00]} 44. Kh4 {[%emt 0:03:03]} f6 {[%emt 0:00:00]} 45. g5 {[%emt 0:01:41]} f5 {[%emt 0:00:00]} 46. Kg3 {[%emt 0:00:22]} Ka5 {[%emt 0:00:00]} 47. Kf3 {[%emt 0:00:15]} Ka4 {[%emt 0:00:00]} 48. Ke3 {[%emt 0:00:05]} Kxa3 {[%emt 0:00:00]} 49. Kd4 {[%emt 0:00:04]} Bb3 {[%emt 0:00:00]} 50. Ke5 {[%emt 0:00:25]} Bd1 {[%emt 0:00:00]} 51. Kf6 {[%emt 0:00:36]} Bh5 {[%emt 0:00:00]} 52. Ke5 {[%emt 0:00:36]} Kb3 {[%emt 0:00:00]} 53. Kd5 {[%emt 0:00:19]} Kc3 {[%emt 0:00:08]} 54. Kc5 {[%emt 0:00:04]} Kd3 {[%emt 0:00:00]} 55. Kd5 {[%emt 0:00:05]} Ke3 {[%emt 0:00:00]} 56. Ke5 {[%emt 0:00:04]} Kf3 {[%emt 0:00:00]} 57. Kd4 {[%emt 0:00:09]} Kxf4 {[%emt 0:00:00]} 58. Kd3 {[%emt 0:00:04]} Kxg5 {[%emt 0:00:00]} 59. Ke3 {[%emt 0:00:04]} f4+ {[%emt 0:00:00]} 60. Kf2 {[%emt 0:00:03]} Kg4 {[%emt 0:00:00]} 0-1

[Event "GER-ch Youth-U12 2022"]
[Site "Willingen"]
[Date "2022.06.09"]
[Round "7.23"]
[White "Büchel, David"]
[Black "Prashanthakumar, Arju"]
[Result "1/2-1/2"]
[ECO "C01"]
[WhiteElo "1527"]
[BlackElo "1265"]
[Annotator "NA RC COMBH"]
[PlyCount "42"]
[EventDate "2022.06.05"]
[EventType "swiss"]
[EventRounds "9"]
[EventCountry "GER"]
[SourceTitle "playchess.com"]
[Source "ChessBase"]
[SourceQuality "1"]
[TimeControl "40/4500+30:900+30"]

1. e4 {[%emt 0:00:00]} e6 {[%emt 0:00:00]} 2. d4 {[%emt 0:00:00]} d5 {[%emt 0:00:00]} 3. Nc3 {[%emt 0:00:00]} Nf6 {[%emt 0:00:00]} 4. exd5 {[%emt 0:00:00]} exd5 {[%emt 0:00:00]} 5. Be2 {[%emt 0:00:00]} Bd6 {[%emt 0:00:00]} 6. Nf3 {[%emt 0:00:00]} O-O {[%emt 0:00:00]} 7. O-O {[%emt 0:00:00]} Bf5 {[%emt 0:00:00]} 8. Bg5 {[%emt 0:00:00]} c6 {[%emt 0:00:00]} 9. Ne5 {[%emt 0:00:16]} Re8 {[%emt 0:00:50]} 10. f4 {[%emt 0:01:29]} Nbd7 {[%emt 0:11:10]} 11. Bd3 {[%emt 0:09:06]} Bxd3 {[%emt 0:07:26]} 12. Qxd3 {[%emt 0:03:04]} Qb6 {[%emt 0:05:51]} 13. Ne2 {[%emt 0:13:15]} Bxe5 {[%emt 0:09:38]} 14. fxe5 {[%emt 0:01:03]} Rxe5 {[%emt 0:06:54]} 15. Bd2 {[%emt 0:12:47]} Re7 {[%emt 0:03:56]} 16. b3 {[%emt 0:02:34]} Rae8 {[%emt 0:03:06]} 17. Ng3 {[%emt 0:04:09]} Ne4 {[%emt 0:03:24]} 18. Nf5 {[%emt 0:05:22]} Re6 {[%emt 0:02:59]} 19. Bf4 {[%emt 0:01:31]} Qb4 {[%emt 0:03:49]} 20. Rf3 {[%emt 0:02:38]} a5 {[%emt 0:05:43]} 21. a3 {[%emt 0:02:43]} Qb6 {[%emt 0:00:52]} 1/2-1/2

[Event "GER-ch Youth-U12 2022"]
[Site "Willingen"]
[Date "2022.06.09"]
[Round "7.24"]
[White "Gulamzada, Elmir"]
[Black "Pham, Jacky"]
[Result "0-1"]
[ECO "C01"]
[WhiteElo "1539"]
[BlackElo "1189"]
[Annotator "NA RC COMBH"]
[PlyCount "112"]
[EventDate "2022.06.05"]
[EventType "swiss"]
[EventRounds "9"]
[EventCountry "GER"]
[SourceTitle "playchess.com"]
[Source "ChessBase"]
[SourceQuality "1"]
[TimeControl "40/4500+30:900+30"]

1. e4 {[%emt 0:00:00]} e6 {[%emt 0:00:00]} 2. d4 {[%emt 0:00:00]} d5 {[%emt 0:00:00]} 3. Bd3 {[%emt 0:00:00]} Nf6 {[%emt 0:00:00]} 4. e5 {[%emt 0:00:00]} Nfd7 {[%emt 0:00:00]} 5. c3 {[%emt 0:00:00]} c5 {[%emt 0:00:00]} 6. Nf3 {[%emt 0:00:00]} Be7 {[%emt 0:00:00]} 7. O-O {[%emt 0:00:00]} Nc6 {[%emt 0:00:00]} 8. Re1 {[%emt 0:00:00]} h6 {[%emt 0:00:00]} 9. a3 {[%emt 0:03:36]} O-O {[%emt 0:00:00]} 10. Bc2 {[%emt 0:03:34]} a5 {[%emt 0:03:33]} 11. Qd3 {[%emt 0:01:29]} f5 {[%emt 0:02:15]} 12. exf6 {[%emt 0:01:13]} Nxf6 {[%emt 0:00:28]} 13. Qg6 {[%emt 0:02:18]} Qe8 {[%emt 0:03:28]} 14. Nh4 {[%emt 0:13:23]} Bd6 {[%emt 0:12:28]} 15. dxc5 {[%emt 0:08:56]} Bxc5 {[%emt 0:03:40]} 16. Be3 {[%emt 0:12:11]} Bxe3 {[%emt 0:06:52]} 17. Rxe3 {[%emt 0:10:35]} Qxg6 {[%emt 0:03:06]} 18. Nxg6 {[%emt 0:00:32]} Rf7 {[%emt 0:06:19]} 19. h3 {[%emt 0:03:55]} Bd7 {[%emt 0:10:19]} 20. Ba4 {[%emt 0:04:39]} Re8 {[%emt 0:09:23]} 21. Nd2 {[%emt 0:05:30]} Kh7 {[%emt 0:06:05]} 22. Bc2 {[%emt 0:02:46]} Kg8 {[%emt 0:02:14]} 23. Rae1 {[%emt 0:01:49]} d4 {[%emt 0:01:18]} 24. R3e2 {[%emt 0:04:21]} dxc3 {[%emt 0:02:17]} 25. bxc3 {[%emt 0:00:07]} Nd5 {[%emt 0:01:51]} 26. Ne5 {[%emt 0:01:13]} Nxe5 {[%emt 0:01:02]} 27. Rxe5 {[%emt 0:00:15]} Ref8 {[%emt 0:00:27]} 28. Nf3 {[%emt 0:01:31]} Nf4 {[%emt 0:02:32]} 29. Kh2 {[%emt 0:02:15]} b6 {[%emt 0:01:04]} 30. Be4 {[%emt 0:01:36]} Rf6 {[%emt 0:01:21]} 31. g3 {[%emt 0:01:22]} Nd5 {[%emt 0:01:10]} 32. Bxd5 {[%emt 0:00:48]} exd5 {[%emt 0:00:15]} 33. Nh4 {[%emt 0:00:31]} Rxf2+ {[%emt 0:00:20]} 34. Ng2 {[%emt 0:00:21]} Rd2 {[%emt 0:01:34]} 35. R1e2 {[%emt 0:00:11]} Rxe2 {[%emt 0:01:00]} 36. Rxe2 {[%emt 0:00:07]} Rf3 {[%emt 0:00:40]} 37. Rc2 {[%emt 0:00:13]} Bf5 {[%emt 0:01:21]} 38. Nh4 {[%emt 0:00:58]} Bxc2 {[%emt 0:00:28]} 39. Nxf3 {[%emt 0:00:06]} Kf7 {[%emt 0:01:09]} 40. Kg1 {[%emt 0:00:38]} Be4 {[%emt 0:01:06]} 41. Nd4 {[%emt 0:15:23]} Ke7 {[%emt 0:15:52]} 42. Kf2 {[%emt 0:00:00]} Kd6 {[%emt 0:00:00]} 43. Ke3 {[%emt 0:00:00]} g5 {[%emt 0:00:00]} 44. a4 {[%emt 0:00:00]} Kc5 {[%emt 0:00:00]} 45. g4 {[%emt 0:00:00]} Bg2 {[%emt 0:00:00]} 46. Nf5 {[%emt 0:00:00]} Bxh3 {[%emt 0:00:00]} 47. Nxh6 {[%emt 0:00:00]} b5 {[%emt 0:00:00]} 48. axb5 {[%emt 0:00:00]} Kxb5 {[%emt 0:00:00]} 49. Kd4 {[%emt 0:00:00]} a4 {[%emt 0:00:00]} 50. c4+ {[%emt 0:00:00]} dxc4 {[%emt 0:00:00]} 51. Kc3 {[%emt 0:00:00]} a3 {[%emt 0:00:00]} 52. Nf7 {[%emt 0:00:00]} Bxg4 {[%emt 0:00:00]} 53. Nxg5 {[%emt 0:00:00]} Bd1 {[%emt 0:00:00]} 54. Ne4 {[%emt 0:00:00]} Bb3 {[%emt 0:00:00]} 55. Nd2 {[%emt 0:00:00]} a2 {[%emt 0:00:00]} 56. Kb2 {[%emt 0:00:00]} c3+ {[%emt 0:00:00]} 0-1

[Event "GER-ch Youth-U12 2022"]
[Site "Willingen"]
[Date "2022.06.09"]
[Round "7.25"]
[White "Fettig, Michel"]
[Black "Nguyen, Bach Khoi"]
[Result "0-1"]
[ECO "C54"]
[WhiteElo "1407"]
[BlackElo "1261"]
[Annotator "NA RC COMBH"]
[PlyCount "62"]
[EventDate "2022.06.05"]
[EventType "swiss"]
[EventRounds "9"]
[EventCountry "GER"]
[SourceTitle "playchess.com"]
[Source "ChessBase"]
[SourceQuality "1"]
[TimeControl "40/4500+30:900+30"]

1. e4 {[%emt 0:00:00]} e5 {[%emt 0:00:00]} 2. Nf3 {[%emt 0:00:00]} Nc6 {[%emt 0:00:00]} 3. Bc4 {[%emt 0:00:00]} Bc5 {[%emt 0:00:00]} 4. c3 {[%emt 0:00:00]} Nf6 {[%emt 0:00:00]} 5. d4 {[%emt 0:00:00]} exd4 {[%emt 0:00:00]} 6. b4 {[%emt 0:00:00]} Bb6 {[%emt 0:00:00]} 7. e5 {[%emt 0:00:00]} d5 {[%emt 0:00:00]} 8. exf6 {[%emt 0:00:00]} dxc4 {[%emt 0:00:00]} 9. Qe2+ {[%emt 0:00:00]} Be6 {[%emt 0:00:00]} 10. b5 {[%emt 0:00:00]} d3 {[%emt 0:00:00]} 11. Qe4 {[%emt 0:00:00]} Na5 {[%emt 0:00:00]} 12. fxg7 {[%emt 0:00:00]} Rg8 {[%emt 0:00:00]} 13. Bg5 {[%emt 0:00:00]} Qd5 {[%emt 0:00:00]} 14. Qxh7 {[%emt 0:01:13]} Kd7 {[%emt 0:01:01]} 15. O-O {[%emt 0:00:00]} Rae8 {[%emt 0:00:55]} 16. Nbd2 {[%emt 0:04:42]} Kc8 {[%emt 0:00:49]} 17. Rfe1 {[%emt 0:03:53]} Qxb5 {[%emt 0:02:41]} 18. Ne5 {[%emt 0:04:42]} Nc6 {[%emt 0:05:59]} 19. Nxc6 {[%emt 0:03:18]} Qxg5 {[%emt 0:00:59]} 20. Ne4 {[%emt 0:02:30]} Qxg7 {[%emt 0:06:11]} 21. Qxg7 {[%emt 0:01:54]} Rxg7 {[%emt 0:01:02]} 22. Nf6 {[%emt 0:00:48]} Rh8 {[%emt 0:01:33]} 23. Nd4 {[%emt 0:02:14]} Bxd4 {[%emt 0:00:45]} 24. cxd4 {[%emt 0:00:11]} Rd8 {[%emt 0:01:53]} 25. Re4 {[%emt 0:06:24]} Rg6 {[%emt 0:02:10]} 26. d5 {[%emt 0:02:50]} Bh3 {[%emt 0:01:17]} 27. Rf4 {[%emt 0:01:43]} Bxg2 {[%emt 0:00:47]} 28. Ng4 {[%emt 0:02:00]} Bxd5 {[%emt 0:00:55]} 29. Kf1 {[%emt 0:01:13]} Be6 {[%emt 0:03:21]} 30. f3 {[%emt 0:01:54]} c3 {[%emt 0:02:52]} 31. Ne3 {[%emt 0:01:14]} c2 {[%emt 0:01:56]} 0-1